bitfinex-derivatives/quotes_BTCF0:USTF0_20251111
["timestamp","ask_amount","ask_price","bid_price","bid_amount"]
[1762881934863,1.30283593,103460.0,103450.0,0.13437743]
[1762881935064,1.30283593,103460.0,103450.0,0.13537743]
[1762881935260,1.30283593,103460.0,103450.0,0.00419803]
[1762881935477,1.45872162,103460.0,103450.0,0.002]
[1762881937374,1.45872162,103460.0,103450.0,0.001]
[1762881937871,1.45872162,103460.0,103450.0,0.0966894]
[1762881938071,1.36204162,103460.0,103450.0,0.11176743]
[1762881938269,1.20615593,103460.0,103450.0,0.13339743]
[1762881938577,1.30283593,103460.0,103450.0,0.15532743]
[1762881939173,1.30287593,103460.0,103450.0,0.15532743]
[1762881939673,1.20619593,103460.0,103450.0,0.15532743]
[1762881939874,1.20631861,103460.0,103450.0,0.15532743]
[1762881940375,0.83907861,103460.0,103450.0,0.15532743]
[1762881940576,1.20631861,103460.0,103450.0,0.15532743]
[1762881940873,0.53374723,103460.0,103450.0,0.15532743]
[1762881941076,0.68963292,103460.0,103450.0,0.51612743]
[1762881941375,0.84551861,103460.0,103450.0,0.15532743]
[1762881942773,0.47827861,103460.0,103450.0,0.15532743]
[1762881942971,0.84551861,103460.0,103450.0,0.15532743]
[1762881943778,0.47827861,103460.0,103450.0,0.15532743]
[1762881944078,0.84551861,103460.0,103450.0,0.15532743]
[1762881944573,0.47827861,103460.0,103450.0,0.15532743]
[1762881944781,0.84551861,103460.0,103450.0,0.15532743]
[1762881946988,1.20631861,103460.0,103450.0,0.15532743]
[1762881947795,1.20631861,103460.0,103440.0,0.1541114]
[1762881947796,1.3622043,103460.0,103440.0,0.1541114]
[1762881947981,0.31177138,103450.0,103440.0,0.15630943]
[1762881948185,0.33226358,103450.0,103440.0,0.15630943]
[1762881948392,0.33238653,103450.0,103440.0,0.15630943]
[1762881948580,0.17650084,103450.0,103440.0,0.15630943]
[1762881948983,0.02061515,103450.0,103440.0,0.15630943]
[1762881949187,0.52324864,103450.0,103440.0,0.15630943]
[1762881949391,0.54374084,103450.0,103440.0,0.15630943]
[1762881949995,0.54374084,103450.0,103440.0,0.15730943]
[1762881950699,0.54374084,103450.0,103440.0,0.15830943]
[1762881950995,0.17650084,103450.0,103440.0,0.15830943]
[1762881951196,0.17650084,103450.0,103440.0,0.51910943]
[1762881951396,0.54374084,103450.0,103440.0,0.51910943]
[1762881951982,0.17650084,103450.0,103440.0,0.51910943]
[1762881952390,0.54374084,103450.0,103440.0,0.51910943]
[1762881952589,0.54374084,103450.0,103440.0,0.15830943]
[1762881957392,0.90454084,103450.0,103440.0,0.15830943]
[1762881957795,0.74865515,103450.0,103440.0,0.15830943]
[1762881957986,0.90454084,103450.0,103440.0,0.15830943]
[1762881958186,1.06042653,103450.0,103440.0,0.15830943]
[1762881960998,1.11249249,103450.0,103440.0,0.15830943]
[1762881962099,0.43348111,103450.0,103440.0,0.15830943]
[1762881962396,0.54374084,103450.0,103440.0,0.15830943]
[1762881963307,0.90454084,103450.0,103440.0,0.15830943]
[1762881964297,0.54374084,103450.0,103440.0,0.15830943]
[1762881965105,0.38785515,103450.0,103440.0,0.31419512]
[1762881965304,0.17650084,103450.0,103440.0,0.15830943]
[1762881965503,0.54374084,103450.0,103440.0,0.15830943]
[1762881965802,0.90454084,103450.0,103440.0,0.15830943]
[1762881966398,0.54374084,103450.0,103440.0,0.15830943]
[1762881966600,0.17650084,103450.0,103440.0,0.15830943]
[1762881966802,0.54374084,103450.0,103440.0,0.67499512]
[1762881966999,0.54374084,103450.0,103440.0,0.51910943]
[1762881967800,0.54374084,103450.0,103440.0,0.15830943]
[1762881969205,0.17650084,103450.0,103440.0,0.15830943]
[1762881969512,0.54374084,103450.0,103440.0,0.15830943]
[1762881969701,0.69962653,103450.0,103440.0,0.15830943]
[1762881969902,0.54374084,103450.0,103440.0,0.15830943]
[1762881970298,0.38785515,103450.0,103440.0,0.15830943]
[1762881970500,0.38785515,103450.0,103440.0,0.31419512]
[1762881970701,0.54374084,103450.0,103440.0,0.31419512]
[1762881970899,0.54374084,103450.0,103440.0,0.15830943]
[1762881976905,0.38785515,103450.0,103440.0,0.15830943]
[1762881977209,0.54374084,103450.0,103440.0,0.15830943]
[1762881978116,0.38785515,103450.0,103440.0,0.15830943]
[1762881978308,0.54374084,103450.0,103440.0,0.15830943]
[1762881979433,1.20578857,103450.0,103440.0,0.002]
[1762881979612,1.25785453,103450.0,103440.0,0.0986988]
[1762881979800,1.25785453,103450.0,103440.0,0.002]
[1762881980006,1.27482479,103450.0,103440.0,0.0986988]
[1762881980308,1.25796672,103450.0,103440.0,0.11373683]
[1762881980508,0.94619534,103450.0,103440.0,0.11373683]
[1762881980709,1.25796672,103450.0,103440.0,0.13569683]
[1762881980911,1.25796672,103450.0,103440.0,0.11373683]
[1762881981112,1.25796672,103450.0,103440.0,0.01703803]
[1762881981413,1.25796672,103450.0,103440.0,0.11373683]
[1762881982013,0.89072672,103450.0,103440.0,0.15826683]
[1762881982410,0.16597719,103450.0,103440.0,0.15826683]
[1762881982709,0.68910288,103450.0,103440.0,0.15826683]
[1762881982912,1.04990288,103450.0,103440.0,0.15826683]
[1762881983311,1.10208103,103450.0,103440.0,0.15826683]
[1762881983713,1.04990288,103450.0,103440.0,0.15826683]
[1762881984018,1.20578857,103450.0,103440.0,0.15726683]
[1762881984215,1.20578857,103450.0,103440.0,0.15626683]
[1762881984715,1.04990288,103450.0,103440.0,0.15626683]
[1762881987214,1.0499594,103450.0,103440.0,0.15626683]
[1762881988410,1.0499194,103450.0,103440.0,0.15626683]
[1762881989112,0.6827194,103450.0,103440.0,0.15626683]
[1762881989312,1.0499194,103450.0,103440.0,0.15626683]
[1762881990410,1.0499194,103450.0,103440.0,0.05956803]
[1762881990613,1.0499194,103450.0,103430.0,0.1541155]
[1762881990614,1.30255101,103450.0,103430.0,0.1541155]
[1762881990915,0.6728039,103440.0,103430.0,0.15631353]
[1762881991105,0.6932961,103440.0,103430.0,0.15631353]
[1762881991815,0.53735389,103440.0,103430.0,0.15631353]
[1762881992024,0.90455389,103440.0,103430.0,0.15631353]
[1762881992716,0.90455389,103440.0,103430.0,0.15731353]
[1762881992910,0.53735389,103440.0,103430.0,0.15731353]
[1762881993112,0.90455389,103440.0,103430.0,0.15731353]
[1762881993411,0.90455389,103440.0,103430.0,0.15831353]
[1762881993608,0.90459389,103440.0,103430.0,0.15831353]
[1762881994811,0.53735389,103440.0,103430.0,0.15831353]
[1762881995010,0.90459389,103440.0,103430.0,0.15831353]
[1762881995403,0.17655389,103440.0,103430.0,0.15831353]
[1762881995609,0.54379389,103440.0,103430.0,0.51911353]
[1762881996111,0.02061168,103440.0,103430.0,0.51911353]
[1762881996306,0.36735948,103440.0,103430.0,0.51911353]
[1762881996504,0.54379389,103440.0,103430.0,0.51911353]
[1762881997012,0.17655389,103440.0,103430.0,0.51911353]
[1762881997218,0.54379389,103440.0,103430.0,0.51911353]
[1762881997417,0.38785168,103440.0,103430.0,0.51911353]
[1762881997620,0.02061168,103440.0,103430.0,0.51911353]
[1762881997816,0.38785168,103440.0,103430.0,0.67505574]
[1762881998412,0.38785168,103440.0,103430.0,0.91673574]
[1762881998916,0.38785168,103440.0,103430.0,0.67505574]
[1762881999614,0.02061168,103440.0,103430.0,0.67505574]
[1762881999815,0.02061168,103440.0,103430.0,0.91673574]
[1762882000115,0.02061168,103440.0,103430.0,0.67505574]
[1762882000416,0.00011948,103440.0,103430.0,0.67505574]
[1762882000618,0.02061168,103440.0,103430.0,0.67505574]
[1762882000820,0.00011948,103440.0,103430.0,0.67505574]
[1762882001121,0.00011948,103440.0,103430.0,0.51911353]
[1762882001321,0.02061168,103440.0,103430.0,0.67505574]
[1762882001522,0.00011948,103440.0,103430.0,0.51911353]
[1762882001818,0.02061168,103440.0,103430.0,0.51911353]
[1762882002423,0.00011948,103440.0,103430.0,0.51911353]
[1762882002616,0.02061168,103440.0,103430.0,0.51911353]
[1762882003122,0.00011948,103440.0,103430.0,0.51911353]
[1762882003417,0.02061168,103440.0,103430.0,0.51911353]
[1762882003922,0.00011948,103440.0,103430.0,0.51911353]
[1762882004216,0.02061168,103440.0,103430.0,0.51911353]
[1762882004424,0.00011948,103440.0,103430.0,0.51911353]
[1762882004620,0.02061168,103440.0,103430.0,0.51911353]
[1762882004817,0.00011948,103440.0,103430.0,0.67505574]
[1762882005024,0.02061168,103440.0,103430.0,0.67505574]
[1762882005522,0.00011948,103440.0,103430.0,0.67505574]
[1762882005722,0.02061168,103440.0,103430.0,0.67505574]
[1762882006024,0.15606169,103440.0,103430.0,0.15831353]
[1762882006223,0.02061168,103440.0,103430.0,0.15831353]
[1762882006417,0.17655389,103440.0,103430.0,0.15831353]
[1762882006822,0.02061168,103440.0,103430.0,0.15831353]
[1762882007021,0.17655389,103440.0,103430.0,0.15831353]
[1762882009411,0.53735389,103440.0,103430.0,0.15831353]
[1762882010928,0.17655389,103440.0,103430.0,0.15831353]
[1762882013925,0.0204922,103440.0,103430.0,0.15831353]
[1762882014127,0.00014456,103450.0,103440.0,0.1551089]
[1762882014330,0.00014456,103450.0,103440.0,0.51810693]
[1762882014525,0.52328677,103450.0,103440.0,0.51810693]
[1762882015123,0.52335771,103450.0,103440.0,0.15730693]
[1762882016030,0.88415771,103450.0,103440.0,0.15730693]
[1762882017125,0.15615771,103450.0,103440.0,0.51810693]
[1762882017726,0.0002155,103450.0,103440.0,0.51810693]
[1762882017930,0.3674155,103450.0,103440.0,0.51810693]
[1762882018121,0.0002155,103450.0,103440.0,0.51810693]
[1762882018321,0.0002155,103450.0,103440.0,0.67404914]
[1762882018528,0.3674155,103450.0,103440.0,0.67404914]
[1762882019029,0.3674155,103450.0,103440.0,0.51810693]
[1762882019430,0.3673755,103450.0,103440.0,0.51810693]
[1762882019925,0.52331771,103450.0,103440.0,0.51810693]
[1762882021929,0.41297815,103470.0,103460.0,0.05733]
[1762882022134,0.88390221,103470.0,103460.0,0.15620833]
[1762882022320,0.65847815,103480.0,103460.0,0.15620833]
[1762882022321,0.56892036,103480.0,103460.0,0.15620833]
[1762882022526,0.51674221,103480.0,103470.0,0.1540009]
[1762882022726,1.08135021,103480.0,103470.0,0.15619893]
[1762882023323,0.05232271,103490.0,103480.0,0.05733]
[1762882023528,0.05232271,103490.0,103480.0,0.51698963]
[1762882023829,0.00014456,103490.0,103480.0,0.51698963]
[1762882024630,0.51888677,103490.0,103480.0,0.15618963]
[1762882025025,0.36294456,103490.0,103480.0,0.15618963]
[1762882025227,0.51888677,103490.0,103480.0,0.15618963]
[1762882025828,0.52088677,103490.0,103480.0,0.15618963]
[1762882026037,0.54227615,103490.0,103480.0,0.15618963]
[1762882026334,0.68489463,103490.0,103480.0,0.13495963]
[1762882026536,0.68589463,103490.0,103480.0,0.15618963]
[1762882026727,0.68489463,103490.0,103480.0,0.15618963]
[1762882031239,1.05197463,103490.0,103480.0,0.15618963]
[1762882033351,1.05197463,103490.0,103480.0,0.09885953]
[1762882033839,1.05197463,103490.0,103480.0,0.13495953]
[1762882034049,1.05197463,103490.0,103480.0,0.15618953]
[1762882035941,1.05193463,103490.0,103480.0,0.15618953]
[1762882043149,0.89599242,103490.0,103480.0,0.15618953]
[1762882043342,1.05193463,103490.0,103480.0,0.15618953]
[1762882044051,0.68489463,103490.0,103480.0,0.15618953]
[1762882044237,1.05189463,103490.0,103480.0,0.15618953]
[1762882048954,1.05174386,103490.0,103480.0,0.15618953]
[1762882049845,1.2075353,103490.0,103480.0,0.15618953]
[1762882050046,1.05174386,103490.0,103480.0,0.15618953]
[1762882050449,0.69094386,103490.0,103480.0,0.15618953]
[1762882050650,0.17932538,103490.0,103480.0,0.31198097]
[1762882050849,0.54632538,103490.0,103480.0,0.31198097]
[1762882051450,0.17932538,103490.0,103480.0,0.31198097]
[1762882051657,0.39053394,103490.0,103480.0,0.31198097]
[1762882051859,0.17932538,103490.0,103480.0,0.31198097]
[1762882052051,0.54632538,103490.0,103480.0,0.31198097]
[1762882052252,0.54632538,103490.0,103480.0,0.15618953]
[1762882052453,0.59850353,103490.0,103480.0,0.15618953]
[1762882052655,0.95930353,103490.0,103480.0,0.15618953]
[1762882053858,0.9761616,103490.0,103480.0,0.15618953]
[1762882054470,0.97835963,103490.0,103480.0,0.1412047]
[1762882057964,0.97834708,103490.0,103480.0,0.1412047]
[1762882059367,0.90931086,103490.0,103480.0,0.1412047]
[1762882060066,1.13413852,103490.0,103480.0,0.1412047]
[1762882060258,1.23079062,103490.0,103480.0,0.0968147]
[1762882060457,1.37596132,103490.0,103480.0,0.0968147]
[1762882060861,1.37596152,103490.0,103480.0,0.0968147]
[1762882062764,1.37596152,103490.0,103480.0,0.1200247]
[1762882063069,1.27930922,103490.0,103480.0,0.1200247]
[1762882063368,1.27930922,103490.0,103480.0,0.1432847]
[1762882063763,1.26237528,103490.0,103480.0,0.1432847]
[1762882064466,1.10658384,103490.0,103480.0,0.1432847]
[1762882064664,0.73958384,103490.0,103480.0,0.1432847]
[1762882064967,1.10654384,103490.0,103480.0,0.1432847]
[1762882065371,1.35898758,103490.0,103480.0,0.00073267]
[1762882066461,1.35898758,103490.0,103470.0,0.1560741]
[1762882066768,0.82114676,103480.0,103470.0,0.15680677]
[1762882067069,0.84472162,103480.0,103470.0,0.15680677]
[1762882067570,0.84472162,103480.0,103470.0,0.11034357]
[1762882067868,1.09385744,103480.0,103470.0,0.00073267]
[1762882068069,0.0966709,103470.0,103460.0,0.13296806]
[1762882068268,1.0037972,103470.0,103460.0,0.13370073]
[1762882068663,1.05589948,103470.0,103460.0,0.13370073]
[1762882068858,1.30375671,103470.0,103460.0,0.13370073]
[1762882069167,1.30375671,103470.0,103460.0,0.00087723]
[1762882069963,1.20708581,103470.0,103460.0,0.13360753]
[1762882070271,1.05129437,103470.0,103460.0,0.15540753]
[1762882070968,0.68433437,103470.0,103460.0,0.15540753]
[1762882071172,1.05129437,103470.0,103460.0,0.15540753]
[1762882071364,0.68433437,103470.0,103460.0,0.15540753]
[1762882071559,1.05129437,103470.0,103460.0,0.15540753]
[1762882071967,0.68433437,103470.0,103460.0,0.15540753]
[1762882072264,1.05129437,103470.0,103460.0,0.15540753]
[1762882074576,0.68433437,103470.0,103460.0,0.15540753]
[1762882074777,1.05129437,103470.0,103460.0,0.15540753]
[1762882075270,0.68433437,103470.0,103460.0,0.15540753]
[1762882075467,0.02357486,103470.0,103460.0,0.82779041]
[1762882075777,0.38833683,103470.0,103460.0,0.82779041]
[1762882076168,0.02137683,103470.0,103460.0,0.82779041]
[1762882076368,0.5463263,103470.0,103460.0,0.67199897]
[1762882077378,0.39053486,103470.0,103460.0,0.67199897]
[1762882077578,0.5463263,103470.0,103460.0,0.67199897]
[1762882078478,0.02357486,103470.0,103460.0,0.67199897]
[1762882078682,0.39053486,103470.0,103460.0,0.82779041]
[1762882078978,0.39053486,103470.0,103460.0,0.67199897]
[1762882079577,0.5463263,103470.0,103460.0,0.67199897]
[1762882080179,0.5463263,103470.0,103460.0,0.51620753]
[1762882080373,0.39053486,103470.0,103460.0,0.67199897]
[1762882080682,0.5463263,103470.0,103460.0,0.67199897]
[1762882081289,0.39053486,103470.0,103460.0,0.82779041]
[1762882081476,0.02357486,103470.0,103460.0,1.06943041]
[1762882081672,0.36696,103470.0,103460.0,1.06943041]
[1762882081874,0.36696,103470.0,103460.0,0.82779041]
[1762882082086,0.36696,103470.0,103460.0,0.51620753]
[1762882082290,0.15579144,103480.0,103470.0,0.1541211]
[1762882082481,0.54406287,103480.0,103470.0,0.15631913]
[1762882083291,0.54506287,103480.0,103470.0,0.31211057]
[1762882083485,0.54606287,103480.0,103470.0,0.31211057]
[1762882083686,0.02331143,103480.0,103470.0,0.31211057]
[1762882083887,0.54602287,103480.0,103470.0,0.67291057]
[1762882086397,0.39023143,103480.0,103470.0,0.67291057]
[1762882087185,0.02331143,103480.0,103470.0,0.67291057]
[1762882087395,0.39023143,103480.0,103470.0,0.67291057]
[1762882087586,0.38923143,103480.0,103470.0,0.67291057]
[1762882088188,0.02231143,103480.0,103470.0,0.67291057]
[1762882088793,0.36706456,103490.0,103480.0,0.05745]
[1762882088998,0.56869372,103510.0,103500.0,0.154093]
[1762882089191,0.56869372,103510.0,103500.0,0.15629103]
[1762882089396,1.17637836,103510.0,103500.0,0.15629103]
[1762882090092,0.55703322,103510.0,103500.0,0.15629103]
[1762882090292,0.55703322,103510.0,103500.0,0.31208247]
[1762882090293,1.02964238,103510.0,103500.0,0.31208247]
[1762882090597,1.02964238,103510.0,103500.0,0.15629103]
[1762882090795,1.03164238,103510.0,103500.0,0.15629103]
[1762882092295,0.66472238,103510.0,103500.0,0.15629103]
[1762882092491,1.03160238,103510.0,103500.0,0.15629103]
[1762882093099,0.88747144,103510.0,103500.0,0.15629103]
[1762882093395,0.88547144,103510.0,103500.0,0.15629103]
[1762882093700,0.51759144,103510.0,103500.0,0.31208247]
[1762882093900,0.93757372,103510.0,103500.0,0.31208247]
[1762882094197,0.78178228,103510.0,103500.0,0.31208247]
[1762882094391,0.88547144,103510.0,103500.0,0.31208247]
[1762882095401,0.62130514,103510.0,103500.0,0.15629103]
[1762882095589,0.98210514,103510.0,103500.0,0.15629103]
[1762882097101,0.88547144,103510.0,103500.0,0.15629103]
[1762882097599,0.98210514,103510.0,103500.0,0.15629103]
[1762882097797,0.88547144,103510.0,103500.0,0.15629103]
[1762882098498,0.98210514,103510.0,103500.0,0.15629103]
[1762882098799,0.88547144,103510.0,103500.0,0.15629103]
[1762882100795,0.75105997,103510.0,103500.0,0.15629103]
[1762882101191,0.39025997,103510.0,103500.0,0.15629103]
[1762882101401,0.54605141,103510.0,103500.0,0.15629103]
[1762882103694,0.54605141,103510.0,103500.0,0.51709103]
[1762882103898,0.54605141,103510.0,103500.0,0.15629103]
[1762882104804,0.17917141,103510.0,103500.0,0.15629103]
[1762882105002,0.54597141,103510.0,103500.0,0.15629103]
[1762882106004,1.00340511,103510.0,103500.0,0.15629103]
[1762882107804,0.90677141,103510.0,103500.0,0.15629103]
[1762882108504,0.54597141,103510.0,103500.0,0.15629103]
[1762882108905,0.54592042,103510.0,103500.0,0.15629103]
[1762882109605,1.00335412,103510.0,103500.0,0.15629103]
[1762882111502,1.00335412,103510.0,103500.0,0.09884103]
[1762882111902,1.00335412,103510.0,103500.0,0.15757103]
[1762882112394,0.90672042,103510.0,103500.0,0.15757103]
[1762882112602,1.00335412,103510.0,103500.0,0.15757103]
[1762882113101,0.38417997,103510.0,103500.0,0.15757103]
[1762882113302,0.90668042,103510.0,103500.0,0.15757103]
[1762882113700,0.02337997,103510.0,103500.0,0.51837103]
[1762882113906,0.39013997,103510.0,103500.0,0.67411148]
[1762882114299,0.02337997,103510.0,103500.0,0.67411148]
[1762882114499,0.39013997,103510.0,103500.0,0.67411148]
[1762882115904,0.02337997,103510.0,103500.0,0.67411148]
[1762882116295,0.02137997,103510.0,103500.0,1.07137193]
[1762882116501,0.00014456,103520.0,103510.0,0.1553637]
[1762882116703,0.00014456,103520.0,103510.0,0.67410218]
[1762882117899,0.00214456,103520.0,103510.0,0.51836173]
[1762882118104,0.15988501,103520.0,103510.0,0.15756173]
[1762882118306,0.66941169,103520.0,103510.0,0.15756173]
[1762882118609,0.66741169,103520.0,103510.0,0.00219803]
[1762882119104,0.81230268,103520.0,103510.0,0.00219803]
[1762882119305,0.0966337,103510.0,103500.0,0.1553663]
[1762882119506,0.97989415,103510.0,103500.0,0.11242433]
[1762882119711,1.12478514,103510.0,103500.0,0.00219803]
[1762882120100,1.12478514,103510.0,103500.0,0.09884103]
[1762882120310,1.02815144,103510.0,103500.0,0.15757103]
[1762882120612,1.12478514,103510.0,103500.0,0.15757103]
[1762882120911,1.02815144,103510.0,103500.0,0.15757103]
[1762882121218,1.12678514,103510.0,103500.0,0.15757103]
[1762882121512,1.12878514,103510.0,103500.0,0.15757103]
[1762882121912,1.03215144,103510.0,103500.0,0.15757103]
[1762882122112,1.12878514,103510.0,103500.0,0.15757103]
[1762882122818,1.03215144,103510.0,103500.0,0.15757103]
[1762882123118,1.12878514,103510.0,103500.0,0.15757103]
[1762882123407,1.18088742,103510.0,103500.0,0.15757103]
[1762882123815,1.08425372,103510.0,103500.0,0.15757103]
[1762882124900,0.71753372,103510.0,103500.0,0.15757103]
[1762882125207,0.56179327,103510.0,103500.0,0.15757103]
[1762882125410,0.92851327,103510.0,103500.0,0.15757103]
[1762882126110,1.08425372,103510.0,103500.0,0.15757103]
[1762882126813,0.56179327,103510.0,103500.0,0.15757103]
[1762882127007,0.92855327,103510.0,103500.0,0.15757103]
[1762882127411,1.08429372,103510.0,103500.0,0.15757103]
[1762882127602,1.18092742,103510.0,103500.0,0.15757103]
[1762882127808,1.18092742,103510.0,103500.0,0.09884103]
[1762882128511,1.20019991,103510.0,103500.0,0.13467103]
[1762882128707,1.20219991,103510.0,103500.0,0.13467103]
[1762882129019,1.20219991,103510.0,103500.0,0.11243103]
[1762882129220,1.20219991,103510.0,103500.0,0.13467103]
[1762882129516,1.20219991,103510.0,103500.0,0.15757103]
[1762882130017,1.20019991,103510.0,103500.0,0.15757103]
[1762882130219,1.20219991,103510.0,103500.0,0.15757103]
[1762882130916,1.10556621,103510.0,103500.0,0.15757103]
[1762882131119,1.20219991,103510.0,103500.0,0.15757103]
[1762882133018,1.10556621,103510.0,103500.0,0.15757103]
[1762882133233,1.20219991,103510.0,103500.0,0.15757103]
[1762882134524,1.20219991,103510.0,103500.0,0.00219803]
[1762882136323,1.04645946,103510.0,103500.0,0.01481803]
[1762882136529,1.20219991,103510.0,103500.0,0.03584803]
[1762882136927,1.20219991,103510.0,103500.0,0.13249113]
[1762882137723,1.20219991,103510.0,103500.0,0.03584803]
[1762882137923,1.20219991,103510.0,103500.0,0.13249103]
[1762882138628,1.20219991,103510.0,103500.0,0.15531103]
[1762882139330,1.05346393,103510.0,103500.0,0.15531103]
[1762882139525,1.15009763,103510.0,103500.0,0.15531103]
[1762882140325,1.35794036,103510.0,103500.0,0.00219803]
[1762882140524,0.0966431,103500.0,103490.0,0.00014456]
[1762882140729,0.84229877,103500.0,103490.0,0.00014456]
[1762882140929,0.98638277,103500.0,103490.0,0.00014456]
[1762882141623,0.98738277,103500.0,103490.0,0.00014456]
[1762882141825,0.0966617,103480.0,103470.0,0.1320369]
[1762882142023,1.00119464,103480.0,103470.0,0.13423493]
[1762882142220,1.14691484,103480.0,103470.0,0.11245493]
[1762882142418,1.14691484,103480.0,103470.0,0.11245913]
[1762882142419,1.05025314,103480.0,103470.0,0.11245913]
[1762882142728,1.14691484,103480.0,103470.0,0.15617913]
[1762882142919,1.05025314,103480.0,103470.0,0.15617913]
[1762882143316,1.05025314,103480.0,103470.0,0.15717913]
[1762882143727,1.05025314,103480.0,103470.0,0.15817913]
[1762882143929,1.10235542,103480.0,103470.0,0.15817913]
[1762882144136,1.19901712,103480.0,103470.0,0.15817913]
[1762882144332,1.14691484,103480.0,103470.0,0.00419803]
[1762882144533,1.55981712,103480.0,103470.0,0.00419803]
[1762882145126,1.71555757,103480.0,103470.0,0.002]
[1762882145931,0.0966711,103470.0,103460.0,0.00014456]
[1762882146132,0.79022449,103470.0,103460.0,0.00014456]
[1762882146331,0.93511346,103470.0,103460.0,0.00014456]
[1762882146724,0.62363256,103470.0,103460.0,0.00014456]
[1762882146930,0.93511346,103470.0,103460.0,0.00014456]
[1762882147525,0.93711346,103470.0,103460.0,0.00014456]
[1762882147929,0.93911346,103470.0,103460.0,0.00014456]
[1762882149823,0.93911346,103470.0,103460.0,0.09682496]
[1762882150430,0.94860238,103470.0,103460.0,0.09682496]
[1762882151031,0.94860238,103470.0,103460.0,0.15577299]
[1762882151637,0.94860238,103470.0,103460.0,0.13383299]
[1762882152029,0.94860238,103470.0,103460.0,0.11205299]
[1762882152333,0.94860238,103470.0,103460.0,0.01317456]
[1762882153432,0.94860238,103470.0,103460.0,0.15577299]
[1762882153936,0.94860238,103470.0,103460.0,0.01537259]
[1762882155046,0.94860238,103470.0,103460.0,0.00014456]
[1762882155332,0.0966804,103460.0,103450.0,0.01303]
[1762882155540,0.0966898,103450.0,103440.0,0.1534425]
[1762882155836,0.61323025,103450.0,103440.0,0.15564053]
[1762882156036,0.51654045,103450.0,103440.0,0.15564053]
[1762882158038,0.53780908,103450.0,103440.0,0.15564053]
[1762882160339,0.90464908,103450.0,103440.0,0.15564053]
[1762882161946,0.51668501,103460.0,103450.0,0.1564398]
[1762882162244,0.51668501,103460.0,103450.0,0.15863783]
[1762882162245,1.04925971,103460.0,103450.0,0.15863783]
[1762882163251,1.14694011,103460.0,103450.0,0.15863783]
[1762882163951,1.05025971,103460.0,103450.0,0.15863783]
[1762882164248,1.05125971,103460.0,103450.0,0.15863783]
[1762882164947,0.89551926,103460.0,103450.0,0.15863783]
[1762882165142,1.05125971,103460.0,103450.0,0.15863783]
[1762882165343,0.39025163,103460.0,103450.0,0.31437828]
[1762882165545,0.39025163,103460.0,103450.0,0.15863783]
[1762882165734,0.00214456,103460.0,103450.0,0.67517828]
[1762882165938,0.36898456,103460.0,103450.0,0.67517828]
[1762882166140,0.36898456,103460.0,103450.0,0.51943783]
[1762882166341,0.5460243,103460.0,103450.0,0.51943783]
[1762882166537,0.5450243,103460.0,103450.0,0.51943783]
[1762882166750,0.5460243,103460.0,103450.0,0.51943783]
[1762882167347,0.5450243,103460.0,103450.0,0.51943783]
[1762882168054,0.02144385,103460.0,103450.0,0.51943783]
[1762882168250,0.38928385,103460.0,103450.0,0.91681828]
[1762882168451,0.38928385,103460.0,103450.0,0.67517828]
[1762882168644,0.38828385,103460.0,103450.0,0.67517828]
[1762882168846,0.38828385,103460.0,103450.0,0.67528551]
[1762882169045,0.02144385,103460.0,103450.0,0.67528551]
[1762882169448,0.02144385,103460.0,103450.0,0.91692551]
[1762882169645,0.02144385,103460.0,103450.0,0.67528551]
[1762882170046,0.02144385,103460.0,103450.0,0.91692551]
[1762882171251,0.02144385,103460.0,103450.0,0.67528551]
[1762882171453,0.02144385,103460.0,103450.0,0.91692551]
[1762882171753,0.02144385,103460.0,103450.0,0.67528551]
[1762882171950,0.02144385,103460.0,103450.0,0.91692551]
[1762882172150,0.02144385,103460.0,103450.0,0.67528551]
[1762882172451,0.02144385,103460.0,103450.0,0.91692551]
[1762882172653,0.02144385,103460.0,103450.0,0.67528551]
[1762882172954,0.02144385,103460.0,103450.0,0.91692551]
[1762882173155,0.33313921,103460.0,103450.0,0.15863783]
[1762882174056,0.02144385,103460.0,103450.0,0.15863783]
[1762882174554,0.33313921,103460.0,103450.0,0.15863783]
[1762882174756,0.17729153,103460.0,103450.0,0.31448551]
[1762882175052,0.54413153,103460.0,103450.0,0.67528551]
[1762882175555,0.17729153,103460.0,103450.0,0.67528551]
[1762882175760,0.54413153,103460.0,103450.0,0.67528551]
[1762882176363,0.02144385,103460.0,103450.0,0.67528551]
[1762882176552,0.51664768,103480.0,103470.0,0.1564211]
[1762882176752,0.88348768,103480.0,103470.0,0.15861913]
[1762882176952,1.03933536,103480.0,103470.0,0.15861913]
[1762882177650,0.72764,103480.0,103470.0,0.15861913]
[1762882177959,1.04133536,103480.0,103470.0,0.15861913]
[1762882178359,1.03933536,103480.0,103470.0,0.15861913]
[1762882178560,1.04333536,103480.0,103470.0,0.15861913]
[1762882179154,1.04133536,103480.0,103470.0,0.15861913]
[1762882179452,1.04333536,103480.0,103470.0,0.15861913]
[1762882179955,1.04329536,103480.0,103470.0,0.15861913]
[1762882180144,0.88744768,103480.0,103470.0,0.15861913]
[1762882180351,0.52064768,103480.0,103470.0,0.31446681]
[1762882180553,0.88744768,103480.0,103470.0,0.15861913]
[1762882180755,0.15984768,103480.0,103470.0,0.15861913]
[1762882180956,0.52464768,103480.0,103470.0,0.15861913]
[1762882181155,0.52564768,103480.0,103470.0,0.15861913]
[1762882181360,0.52364768,103480.0,103470.0,0.15861913]
[1762882181555,0.52464768,103480.0,103470.0,0.15861913]
[1762882182360,1.13795706,103480.0,103470.0,0.15861913]
[1762882182563,0.77115706,103480.0,103470.0,0.15861913]
[1762882182861,1.13795706,103480.0,103470.0,0.15861913]
[1762882183266,1.04129536,103480.0,103470.0,0.15861913]
[1762882188568,1.06252043,103480.0,103470.0,0.15861913]
[1762882192166,0.53987275,103480.0,103470.0,0.31446681]
[1762882192366,0.90667275,103480.0,103470.0,0.31446681]
[1762882194369,0.90667275,103480.0,103470.0,0.15861913]
[1762882194866,0.54587275,103480.0,103470.0,0.15861913]
[1762882197962,0.17907275,103480.0,103470.0,0.15861913]
[1762882198165,0.54583275,103480.0,103470.0,0.15861913]
[1762882198371,0.54583275,103480.0,103470.0,0.31446681]
[1762882199976,0.59793503,103480.0,103470.0,0.31446681]
[1762882201263,0.75378271,103480.0,103470.0,0.15861913]
[1762882201470,0.85044441,103480.0,103470.0,0.15861913]
[1762882201668,0.75378271,103480.0,103470.0,0.15861913]
[1762882203675,0.02322507,103480.0,103470.0,0.31446681]
[1762882203867,0.02322507,103480.0,103470.0,0.67526681]
[1762882204069,0.38998507,103480.0,103470.0,0.67526681]
[1762882204471,0.02322507,103480.0,103470.0,0.67526681]
[1762882204782,0.36690456,103490.0,103480.0,0.1542317]
[1762882204976,0.52275224,103490.0,103480.0,0.15642973]
[1762882205173,0.52275224,103490.0,103480.0,0.31227741]
[1762882205982,0.15599224,103490.0,103480.0,0.31227741]
[1762882206182,0.52275224,103490.0,103480.0,0.15642973]
[1762882206382,0.61940464,103490.0,103480.0,0.15642973]
[1762882206683,1.28015204,103490.0,103480.0,0.11217973]
[1762882206871,0.87180428,103490.0,103480.0,0.15642973]
[1762882207068,1.12430436,103490.0,103480.0,0.15642973]
[1762882207277,0.87180428,103490.0,103480.0,0.15642973]
[1762882207475,1.02765196,103490.0,103480.0,0.15642973]